[Event "Live Chess"]
[Site "Chess.com"]
[Date "2024.06.02"]
[Round "-"]
[White "stevochess11"]
[Black "yarek"]
[Result "0-1"]
[WhiteElo "1683"]
[BlackElo "1725"]
[TimeControl "300"]
[EndTime "1:08:14 PDT"]
[Termination "yarek won by resignation"]

1. d4 {[%clk 0:04:58.6]} 1... g6 {[%clk 0:04:58.1]} 2. e4 {[%clk 0:04:56]} 2...
Bg7 {[%clk 0:04:57.5]} 3. Nc3 {[%clk 0:04:54.7]} 3... c6 {[%clk 0:04:57]} 4. Nf3
{[%clk 0:04:50.4]} 4... d5 {[%clk 0:04:56.4]} 5. e5 {[%clk 0:04:48.7]} 5... Bg4
{[%clk 0:04:54.1]} 6. h3 {[%clk 0:04:46.7]} 6... Bxf3 {[%clk 0:04:53]} 7. Qxf3
{[%clk 0:04:45.7]} 7... e6 {[%clk 0:04:52]} 8. Be2 {[%clk 0:04:40.6]} 8... Ne7
{[%clk 0:04:49.1]} 9. Bg5 {[%clk 0:04:38.8]} 9... O-O {[%clk 0:04:48]} 10. Bf6
{[%clk 0:04:35.5]} 10... Nd7 {[%clk 0:04:46.5]} 11. Bxg7 {[%clk 0:04:33.9]}
11... Kxg7 {[%clk 0:04:46.2]} 12. Na4 {[%clk 0:04:29.6]} 12... Qa5+ {[%clk
0:04:39.7]} 13. Nc3 {[%clk 0:04:27]} 13... c5 {[%clk 0:04:38]} 14. dxc5 {[%clk
0:04:24.2]} 14... Nxe5 {[%clk 0:04:31]} 15. Qe3 {[%clk 0:04:17.8]} 15... N5c6
{[%clk 0:04:26.8]} 16. O-O {[%clk 0:04:14.3]} 16... d4 {[%clk 0:04:25.1]} 17.
Qg3 {[%clk 0:04:06.9]} 17... dxc3 {[%clk 0:04:22.9]} 18. bxc3 {[%clk 0:04:06.8]}
18... Nd5 {[%clk 0:04:16.5]} 19. Qd6 {[%clk 0:04:01.4]} 19... Rfd8 {[%clk
0:04:04.7]} 20. Bf3 {[%clk 0:04:01.3]} 20... Rxd6 {[%clk 0:04:02.5]} 0-1

[Event "Live Chess"]
[Site "Chess.com"]
[Date "2024.06.02"]
[Round "-"]
[White "jimwad"]
[Black "Step-S"]
[Result "0-1"]
[WhiteElo "1317"]
[BlackElo "1271"]
[TimeControl "300"]
[EndTime "1:08:41 PDT"]
[Termination "Step-S won by resignation"]

1. d4 {[%clk 0:04:59.2]} 1... e5 {[%clk 0:04:58.2]} 2. dxe5 {[%clk 0:04:58]}
2... d6 {[%clk 0:04:57.5]} 3. exd6 {[%clk 0:04:56.5]} 3... Bxd6 {[%clk
0:04:57.4]} 4. Nc3 {[%clk 0:04:55]} 4... Nf6 {[%clk 0:04:56.4]} 5. Nf3 {[%clk
0:04:53.8]} 5... Nc6 {[%clk 0:04:54.9]} 6. Bg5 {[%clk 0:04:52.2]} 6... Qe7
{[%clk 0:04:51.8]} 7. e3 {[%clk 0:04:50.7]} 7... Bg4 {[%clk 0:04:50.8]} 8. Be2
{[%clk 0:04:47.2]} 8... O-O-O {[%clk 0:04:49.3]} 9. O-O {[%clk 0:04:36.7]} 9...
Bxf3 {[%clk 0:04:46.7]} 10. Bxf3 {[%clk 0:04:35.4]} 10... Bxh2+ {[%clk
0:04:45.5]} 11. Kxh2 {[%clk 0:04:27.2]} 11... Rxd1 {[%clk 0:04:45.4]} 12. Raxd1
{[%clk 0:04:25.1]} 12... Qe5+ {[%clk 0:04:43]} 13. Bf4 {[%clk 0:04:23.1]} 13...
Qf5 {[%clk 0:04:24.5]} 14. Rd2 {[%clk 0:03:41.5]} 14... g5 {[%clk 0:04:11.4]}
15. Bg3 {[%clk 0:03:35.1]} 15... g4 {[%clk 0:04:01]} 16. e4 {[%clk 0:03:29.3]}
16... Qg5 {[%clk 0:03:50.1]} 17. e5 {[%clk 0:02:41.3]} 17... Qxd2 {[%clk
0:03:32]} 18. exf6 {[%clk 0:02:37.6]} 18... gxf3 {[%clk 0:03:28.5]} 19. Rd1
{[%clk 0:02:29.5]} 19... Qxc2 {[%clk 0:03:19.2]} 20. gxf3 {[%clk 0:02:21]} 20...
Qxb2 {[%clk 0:03:12.6]} 21. Ne4 {[%clk 0:02:14.3]} 21... Qxa2 {[%clk 0:02:35]}
22. Ng5 {[%clk 0:02:07.2]} 22... h6 {[%clk 0:02:27.8]} 23. Ne4 {[%clk
0:02:04.7]} 23... Rd8 {[%clk 0:02:20.2]} 24. Rxd8+ {[%clk 0:02:00.2]} 24... Nxd8
{[%clk 0:02:19]} 25. Nc5 {[%clk 0:01:53.5]} 25... Qa5 {[%clk 0:02:01.7]} 26. Ne4
{[%clk 0:01:51.4]} 26... Qf5 {[%clk 0:01:58]} 0-1

[Event "Live Chess"]
[Site "Chess.com"]
[Date "2024.06.02"]
[Round "-"]
[White "ProfessorChess101"]
[Black "defenderalist"]
[Result "1-0"]
[WhiteElo "2731"]
[BlackElo "1530"]
[TimeControl "300"]
[EndTime "1:08:43 PDT"]
[Termination "ProfessorChess101 won by resignation"]

1. e4 {[%clk 0:04:58.3]} 1... c5 {[%clk 0:04:56.2]} 2. Nc3 {[%clk 0:04:55.9]}
2... d6 {[%clk 0:04:56.1]} 3. b3 {[%clk 0:04:51.8]} 3... Nc6 {[%clk 0:04:53.3]}
4. Bb2 {[%clk 0:04:51.3]} 4... Nf6 {[%clk 0:04:51.5]} 5. Nf3 {[%clk 0:04:50.1]}
5... Bg4 {[%clk 0:04:49.9]} 6. Bb5 {[%clk 0:04:48.5]} 6... a6 {[%clk 0:04:43.7]}
7. Bxc6+ {[%clk 0:04:43.6]} 7... bxc6 {[%clk 0:04:43.6]} 8. h3 {[%clk
0:04:41.5]} 8... Bh5 {[%clk 0:04:41.4]} 9. d4 {[%clk 0:04:35.4]} 9... cxd4
{[%clk 0:04:39.5]} 10. Qxd4 {[%clk 0:04:35.3]} 10... Bxf3 {[%clk 0:04:31.4]} 11.
gxf3 {[%clk 0:04:31]} 11... e5 {[%clk 0:04:17]} 12. Qc4 {[%clk 0:04:27.3]} 12...
Qc7 {[%clk 0:04:08.5]} 13. Rg1 {[%clk 0:04:19.5]} 13... g6 {[%clk 0:04:05.1]}
14. f4 {[%clk 0:04:11.3]} 14... Bg7 {[%clk 0:03:55.8]} 15. fxe5 {[%clk
0:04:06.2]} 15... dxe5 {[%clk 0:03:50.1]} 16. Ba3 {[%clk 0:04:04.3]} 16... Rd8
{[%clk 0:03:44.8]} 17. Rd1 {[%clk 0:03:25.7]} 17... Rxd1+ {[%clk 0:03:37.3]} 18.
Kxd1 {[%clk 0:03:25.6]} 18... Bf8 {[%clk 0:03:34.7]} 19. Qxa6 {[%clk 0:03:04.8]}
19... Bxa3 {[%clk 0:03:22.4]} 20. Qxa3 {[%clk 0:03:02.5]} 20... Nd7 {[%clk
0:03:05.3]} 21. Kc1 {[%clk 0:02:54.5]} 21... c5 {[%clk 0:02:59.9]} 22. Nd5
{[%clk 0:02:36.3]} 22... Qc6 {[%clk 0:02:47.9]} 23. Rd1 {[%clk 0:02:12.4]} 23...
O-O {[%clk 0:02:46.2]} 24. Ne7+ {[%clk 0:02:11.3]} 1-0

[Event "Live Chess"]
[Site "Chess.com"]
[Date "2024.06.02"]
[Round "-"]
[White "SimonBoy1"]
[Black "TheSmoulderingMaster"]
[Result "0-1"]
[WhiteElo "1526"]
[BlackElo "1754"]
[TimeControl "300"]
[EndTime "1:09:13 PDT"]
[Termination "TheSmoulderingMaster won by resignation"]

1. e4 {[%clk 0:04:57.5]} 1... c5 {[%clk 0:04:58.4]} 2. Nf3 {[%clk 0:04:57]} 2...
d6 {[%clk 0:04:57.2]} 3. d4 {[%clk 0:04:56.5]} 3... cxd4 {[%clk 0:04:56.3]} 4.
Nxd4 {[%clk 0:04:56.4]} 4... Nf6 {[%clk 0:04:55.2]} 5. Nc3 {[%clk 0:04:55.9]}
5... g6 {[%clk 0:04:54.4]} 6. Be3 {[%clk 0:04:54.6]} 6... Bg7 {[%clk 0:04:53.6]}
7. f3 {[%clk 0:04:54.3]} 7... O-O {[%clk 0:04:52.8]} 8. Qd2 {[%clk 0:04:54]}
8... Nc6 {[%clk 0:04:51.8]} 9. O-O-O {[%clk 0:04:53.7]} 9... d5 {[%clk
0:04:50.5]} 10. Nxc6 {[%clk 0:04:52.1]} 10... bxc6 {[%clk 0:04:48.6]} 11. exd5
{[%clk 0:04:51.1]} 11... c5 {[%clk 0:04:47.4]} 12. Bxc5 {[%clk 0:04:48.3]} 12...
Re8 {[%clk 0:04:46.1]} 13. g4 {[%clk 0:04:46.4]} 13... Qa5 {[%clk 0:04:43.4]}
14. Bd4 {[%clk 0:04:41.7]} 14... Rb8 {[%clk 0:04:32.9]} 15. Kb1 {[%clk
0:04:33.6]} 15... Rb4 {[%clk 0:04:21.2]} 16. g5 {[%clk 0:04:18.5]} 16... Nh5
{[%clk 0:04:17.7]} 17. Bxg7 {[%clk 0:04:15.7]} 17... Kxg7 {[%clk 0:04:17.6]} 18.
Ne4 {[%clk 0:04:04.9]} 18... Bf5 {[%clk 0:04:07.6]} 19. Qc3+ {[%clk 0:04:03.6]}
19... Kg8 {[%clk 0:04:04.7]} 20. d6 {[%clk 0:03:56.4]} 20... exd6 {[%clk
0:04:02.3]} 21. Nxd6 {[%clk 0:03:56.3]} 21... Reb8 {[%clk 0:03:50.7]} 22. b3
{[%clk 0:03:37.8]} 22... Rxb3+ {[%clk 0:03:42.2]} 23. axb3 {[%clk 0:03:36.9]}
23... Qxc3 {[%clk 0:03:40.7]} 0-1

[Event "Live Chess"]
[Site "Chess.com"]
[Date "2024.06.02"]
[Round "-"]
[White "peteopeteo"]
[Black "MaksymYurii"]
[Result "1/2-1/2"]
[WhiteElo "1542"]
[BlackElo "982"]
[TimeControl "300"]
[EndTime "1:09:37 PDT"]
[Termination "Game drawn by stalemate"]

1. e4 {[%clk 0:04:58.1]} 1... e5 {[%clk 0:04:59.1]} 2. Nf3 {[%clk 0:04:57.4]}
2... Nc6 {[%clk 0:04:58.2]} 3. Bc4 {[%clk 0:04:56.7]} 3... d5 {[%clk 0:04:54]}
4. exd5 {[%clk 0:04:55.4]} 4... Na5 {[%clk 0:04:52.2]} 5. Bb3 {[%clk 0:04:54.4]}
5... Nxb3 {[%clk 0:04:50.8]} 6. axb3 {[%clk 0:04:54.3]} 6... Qxd5 {[%clk
0:04:49.4]} 7. O-O {[%clk 0:04:53.9]} 7... Qd8 {[%clk 0:04:47.3]} 8. Nc3 {[%clk
0:04:53.3]} 8... Bg4 {[%clk 0:04:46.1]} 9. Re1 {[%clk 0:04:52.1]} 9... f6 {[%clk
0:04:40]} 10. h3 {[%clk 0:04:50.5]} 10... Bxf3 {[%clk 0:04:38.5]} 11. Qxf3
{[%clk 0:04:49.5]} 11... Bd6 {[%clk 0:04:36.8]} 12. d4 {[%clk 0:04:45.4]} 12...
c6 {[%clk 0:04:32.1]} 13. dxe5 {[%clk 0:04:41.4]} 13... Bxe5 {[%clk 0:04:30.6]}
14. Bf4 {[%clk 0:04:40]} 14... Ne7 {[%clk 0:04:25]} 15. Bxe5 {[%clk 0:04:38.8]}
15... fxe5 {[%clk 0:04:24.4]} 16. Rxe5 {[%clk 0:04:36.3]} 16... Rf8 {[%clk
0:04:18.2]} 17. Qh5+ {[%clk 0:04:30.4]} 17... g6 {[%clk 0:04:16.7]} 18. Qxh7
{[%clk 0:04:29.2]} 18... Rf7 {[%clk 0:04:11.8]} 19. Qxg6 {[%clk 0:04:20.5]}
19... Kf8 {[%clk 0:03:24.2]} 20. Qh6+ {[%clk 0:04:13]} 20... Rg7 {[%clk
0:03:20.6]} 21. Qh8+ {[%clk 0:04:07.2]} 21... Kf7 {[%clk 0:03:17.8]} 22. Qxd8
{[%clk 0:04:03.4]} 22... Rxd8 {[%clk 0:03:15.8]} 23. Rae1 {[%clk 0:04:03.1]}
23... Rd7 {[%clk 0:03:11.5]} 24. Rd1 {[%clk 0:03:53.6]} 24... Rxd1+ {[%clk
0:03:02.4]} 25. Nxd1 {[%clk 0:03:53.5]} 25... Nd5 {[%clk 0:03:01.1]} 26. c3
{[%clk 0:03:37.6]} 26... Nf4 {[%clk 0:02:59.4]} 27. Rf5+ {[%clk 0:03:35.6]}
27... Ke6 {[%clk 0:02:54.8]} 28. Rxf4 {[%clk 0:03:34.9]} 28... Kd5 {[%clk
0:02:52.8]} 29. Ne3+ {[%clk 0:03:33.2]} 29... Ke5 {[%clk 0:02:50.1]} 30. Rg4
{[%clk 0:03:16.9]} 30... Rd7 {[%clk 0:02:48.1]} 31. Rd4 {[%clk 0:03:13.4]} 31...
Rf7 {[%clk 0:02:40.6]} 32. Nc4+ {[%clk 0:03:09]} 32... Ke6 {[%clk 0:02:32.7]}
33. Rd6+ {[%clk 0:03:04.7]} 33... Ke7 {[%clk 0:02:27.5]} 34. Rd2 {[%clk
0:02:52]} 34... Ke6 {[%clk 0:02:20.8]} 35. g3 {[%clk 0:02:33.6]} 35... b5 {[%clk
0:02:16.2]} 36. Ne3 {[%clk 0:02:32.6]} 36... a5 {[%clk 0:02:09.4]} 37. Kg2
{[%clk 0:02:31.8]} 37... a4 {[%clk 0:02:08]} 38. bxa4 {[%clk 0:02:31.7]} 38...
bxa4 {[%clk 0:02:07.2]} 39. Rd4 {[%clk 0:02:29.8]} 39... Ra7 {[%clk 0:02:05.6]}
40. h4 {[%clk 0:02:24.5]} 40... a3 {[%clk 0:02:04.3]} 41. bxa3 {[%clk
0:02:24.4]} 41... Rxa3 {[%clk 0:02:02.6]} 42. Rc4 {[%clk 0:02:23.9]} 42... Kd6
{[%clk 0:01:59.9]} 43. h5 {[%clk 0:02:18.8]} 43... Ra8 {[%clk 0:01:48.9]} 44. g4
{[%clk 0:02:17.2]} 44... Ra2 {[%clk 0:01:43.1]} 45. Rf4 {[%clk 0:02:09.7]} 45...
Ra3 {[%clk 0:01:37.7]} 46. Rf3 {[%clk 0:01:59.1]} 46... c5 {[%clk 0:01:30.3]}
47. Nc4+ {[%clk 0:01:57.2]} 47... Kd5 {[%clk 0:01:28.6]} 48. Nxa3 {[%clk
0:01:57.1]} 48... Ke4 {[%clk 0:01:25.3]} 49. h6 {[%clk 0:01:55.4]} 49... c4
{[%clk 0:01:24.4]} 50. Nxc4 {[%clk 0:01:52.4]} 50... Kd5 {[%clk 0:01:17.2]} 51.
Nb6+ {[%clk 0:01:45.5]} 51... Ke4 {[%clk 0:01:14.9]} 52. h7 {[%clk 0:01:43.8]}
52... Ke5 {[%clk 0:01:11.9]} 53. h8=N {[%clk 0:01:40.9]} 53... Ke4 {[%clk
0:01:11.2]} 54. g5 {[%clk 0:01:40]} 54... Ke5 {[%clk 0:01:09.5]} 55. g6 {[%clk
0:01:39.9]} 55... Ke4 {[%clk 0:01:08.8]} 56. g7 {[%clk 0:01:39.8]} 56... Ke5
{[%clk 0:01:07.3]} 57. g8=N {[%clk 0:01:39.7]} 57... Ke4 {[%clk 0:01:06.1]} 58.
Ng6 {[%clk 0:01:34.9]} 1/2-1/2

[Event "Live Chess"]
[Site "Chess.com"]
[Date "2024.06.02"]
[Round "-"]
[White "gunslinger222"]
[Black "Greenbecker"]
[Result "1-0"]
[WhiteElo "2251"]
[BlackElo "1729"]
[TimeControl "300"]
[EndTime "1:09:38 PDT"]
[Termination "gunslinger222 won by resignation"]

1. d4 {[%clk 0:04:57.8]} 1... d5 {[%clk 0:04:58.2]} 2. c4 {[%clk 0:04:57.3]}
2... e6 {[%clk 0:04:55.7]} 3. Nc3 {[%clk 0:04:55.7]} 3... Nf6 {[%clk 0:04:55]}
4. Nf3 {[%clk 0:04:55.3]} 4... Be7 {[%clk 0:04:53.8]} 5. Bf4 {[%clk 0:04:53.9]}
5... O-O {[%clk 0:04:53.2]} 6. e3 {[%clk 0:04:53.4]} 6... c6 {[%clk 0:04:52.3]}
7. c5 {[%clk 0:04:51.9]} 7... b6 {[%clk 0:04:51]} 8. b4 {[%clk 0:04:50.5]} 8...
a5 {[%clk 0:04:50]} 9. a3 {[%clk 0:04:49.9]} 9... axb4 {[%clk 0:04:48.7]} 10.
axb4 {[%clk 0:04:49.8]} 10... Rxa1 {[%clk 0:04:46.7]} 11. Qxa1 {[%clk
0:04:49.7]} 11... Nh5 {[%clk 0:04:42]} 12. Bd3 {[%clk 0:04:44.7]} 12... Nxf4
{[%clk 0:04:40.1]} 13. exf4 {[%clk 0:04:44.6]} 13... Nd7 {[%clk 0:04:34.9]} 14.
O-O {[%clk 0:04:35.4]} 14... f6 {[%clk 0:04:34]} 15. Re1 {[%clk 0:04:29.8]}
15... bxc5 {[%clk 0:04:22]} 16. bxc5 {[%clk 0:04:27.7]} 16... e5 {[%clk
0:04:05.2]} 17. fxe5 {[%clk 0:04:23.5]} 17... fxe5 {[%clk 0:04:03.9]} 18. Nxe5
{[%clk 0:04:20]} 18... Nxe5 {[%clk 0:04:01.5]} 19. Rxe5 {[%clk 0:03:42.1]} 19...
Qc7 {[%clk 0:03:59.4]} 20. Qb1 {[%clk 0:03:29.4]} 20... h6 {[%clk 0:03:53.3]}
21. Na4 {[%clk 0:02:44.8]} 21... Bf6 {[%clk 0:03:45.4]} 22. Re2 {[%clk
0:02:43.3]} 22... Bxd4 {[%clk 0:03:41.8]} 23. Qb4 {[%clk 0:02:33.7]} 23... Qf4
{[%clk 0:03:35.9]} 24. Qd2 {[%clk 0:02:15.4]} 24... Bxf2+ {[%clk 0:03:18.9]} 25.
Rxf2 {[%clk 0:02:11.7]} 25... Qxa4 {[%clk 0:03:17.2]} 26. Bh7+ {[%clk
0:02:04.2]} 26... Kxh7 {[%clk 0:03:09.5]} 27. Rxf8 {[%clk 0:02:03.4]} 27... Ba6
{[%clk 0:02:46.1]} 28. h3 {[%clk 0:01:54]} 28... Qa1+ {[%clk 0:02:39.7]} 29. Kh2
{[%clk 0:01:43.2]} 29... Qe5+ {[%clk 0:02:37]} 30. g3 {[%clk 0:01:42.4]} 30...
Qe7 {[%clk 0:01:54.9]} 31. Qf2 {[%clk 0:01:29.7]} 31... Bd3 {[%clk 0:01:42.9]}
32. Rf7 {[%clk 0:01:25.3]} 32... Qe2 {[%clk 0:01:34.9]} 33. Qxe2 {[%clk
0:01:20.6]} 33... Bxe2 {[%clk 0:01:33.9]} 34. Rc7 {[%clk 0:01:17.6]} 34... Bb5
{[%clk 0:01:32.4]} 35. Rd7 {[%clk 0:01:16.8]} 35... Kg6 {[%clk 0:01:24.4]} 36.
g4 {[%clk 0:01:16]} 36... Kf6 {[%clk 0:01:21.2]} 37. Kg3 {[%clk 0:01:15.1]}
37... g6 {[%clk 0:00:53.5]} 38. h4 {[%clk 0:01:12.3]} 38... Ke6 {[%clk
0:00:48.1]} 39. Rh7 {[%clk 0:01:10]} 39... h5 {[%clk 0:00:41.8]} 40. gxh5 {[%clk
0:01:08.3]} 40... gxh5 {[%clk 0:00:40.8]} 41. Rxh5 {[%clk 0:01:07.9]} 41... d4
{[%clk 0:00:33.3]} 42. Kf4 {[%clk 0:01:07]} 42... d3 {[%clk 0:00:30.1]} 43. Ke3
{[%clk 0:01:06.3]} 43... Kf6 {[%clk 0:00:27.2]} 44. Rg5 {[%clk 0:01:04.8]} 44...
Ke6 {[%clk 0:00:24.1]} 45. Rg1 {[%clk 0:01:02.6]} 45... Kf6 {[%clk 0:00:21.6]}
46. h5 {[%clk 0:01:01.4]} 46... Bc4 {[%clk 0:00:18.3]} 47. h6 {[%clk 0:01:00.2]}
47... Ke5 {[%clk 0:00:15.5]} 48. h7 {[%clk 0:00:59.2]} 1-0

[Event "Live Chess"]
[Site "Chess.com"]
[Date "2024.06.02"]
[Round "-"]
[White "Ferrarifan27"]
[Black "Duke_of_Bebington"]
[Result "1-0"]
[WhiteElo "2133"]
[BlackElo "1681"]
[TimeControl "300"]
[EndTime "1:09:46 PDT"]
[Termination "Ferrarifan27 won by resignation"]

1. e4 {[%clk 0:04:57.2]} 1... e5 {[%clk 0:04:59]} 2. Nf3 {[%clk 0:04:55.4]} 2...
Nf6 {[%clk 0:04:57.9]} 3. Nxe5 {[%clk 0:04:54.1]} 3... d6 {[%clk 0:04:56.8]} 4.
Nf3 {[%clk 0:04:52]} 4... Nxe4 {[%clk 0:04:56.1]} 5. d4 {[%clk 0:04:46.8]} 5...
d5 {[%clk 0:04:54.8]} 6. Nc3 {[%clk 0:04:43.8]} 6... Bg4 {[%clk 0:04:37.2]} 7.
Be2 {[%clk 0:04:42.1]} 7... Bb4 {[%clk 0:04:33.1]} 8. Bd2 {[%clk 0:04:38.8]}
8... O-O {[%clk 0:04:23]} 9. Nxe4 {[%clk 0:04:34.9]} 9... dxe4 {[%clk
0:04:20.3]} 10. Bxb4 {[%clk 0:04:34]} 10... exf3 {[%clk 0:04:19.3]} 11. gxf3
{[%clk 0:04:30.4]} 11... Re8 {[%clk 0:04:13.1]} 12. fxg4 {[%clk 0:04:27.7]}
12... Nc6 {[%clk 0:04:09.3]} 13. Bc3 {[%clk 0:04:24.7]} 13... Qg5 {[%clk
0:04:07.1]} 14. O-O {[%clk 0:04:10.5]} 14... Rad8 {[%clk 0:04:01.4]} 15. Bf3
{[%clk 0:04:06.2]} 15... Nxd4 {[%clk 0:03:55.8]} 16. Bxd4 {[%clk 0:04:03.7]} 1-0

[Event "Live Chess"]
[Site "Chess.com"]
[Date "2024.06.02"]
[Round "-"]
[White "RG_ChessLegend"]
[Black "AlanBstard10"]
[Result "1-0"]
[WhiteElo "1517"]
[BlackElo "1196"]
[TimeControl "300"]
[EndTime "1:09:55 PDT"]
[Termination "RG_ChessLegend won by checkmate"]

1. e4 {[%clk 0:04:59]} 1... d5 {[%clk 0:04:58.4]} 2. exd5 {[%clk 0:04:57.8]}
2... Nf6 {[%clk 0:04:58]} 3. Nc3 {[%clk 0:04:57.7]} 3... Nxd5 {[%clk 0:04:55.2]}
4. Nf3 {[%clk 0:04:56.1]} 4... Bg4 {[%clk 0:04:51.7]} 5. h3 {[%clk 0:04:55]}
5... Nxc3 {[%clk 0:04:50.8]} 6. bxc3 {[%clk 0:04:52.2]} 6... Bxf3 {[%clk
0:04:49.5]} 7. Qxf3 {[%clk 0:04:52.1]} 7... Nc6 {[%clk 0:04:45.9]} 8. Bb5 {[%clk
0:04:50.7]} 8... Qd7 {[%clk 0:04:41.8]} 9. O-O {[%clk 0:04:49.5]} 9... a6 {[%clk
0:04:40.3]} 10. Ba4 {[%clk 0:04:47.7]} 10... O-O-O {[%clk 0:04:37]} 11. Ba3
{[%clk 0:04:43.8]} 11... f6 {[%clk 0:04:33.9]} 12. Rad1 {[%clk 0:04:39.2]} 12...
b5 {[%clk 0:04:32.9]} 13. Bb3 {[%clk 0:04:38.2]} 13... e6 {[%clk 0:04:24.3]} 14.
Rfe1 {[%clk 0:04:35.9]} 14... Re8 {[%clk 0:04:22.6]} 15. d4 {[%clk 0:04:32.4]}
15... Bxa3 {[%clk 0:04:20.5]} 16. d5 {[%clk 0:04:22.6]} 16... Ne5 {[%clk
0:04:11.4]} 17. Rxe5 {[%clk 0:04:11.7]} 17... fxe5 {[%clk 0:04:06]} 18. dxe6
{[%clk 0:04:10]} 18... Qe7 {[%clk 0:03:50.2]} 19. Qa8# {[%clk 0:04:08.3]} 1-0

[Event "Live Chess"]
[Site "Chess.com"]
[Date "2024.06.02"]
[Round "-"]
[White "Ofirgh1234567890"]
[Black "SimonBoy1"]
[Result "1-0"]
[WhiteElo "1765"]
[BlackElo "1523"]
[TimeControl "300"]
[EndTime "1:11:11 PDT"]
[Termination "Ofirgh1234567890 won by resignation"]

1. d4 {[%clk 0:04:58.1]} 1... d5 {[%clk 0:04:58.9]} 2. Bf4 {[%clk 0:04:57]} 2...
e6 {[%clk 0:04:56.3]} 3. e3 {[%clk 0:04:55.1]} 3... Nf6 {[%clk 0:04:55.5]} 4.
Nd2 {[%clk 0:04:53.9]} 4... c6 {[%clk 0:04:55.1]} 5. c3 {[%clk 0:04:53]} 5...
Be7 {[%clk 0:04:55]} 6. Bd3 {[%clk 0:04:52.1]} 6... O-O {[%clk 0:04:54.9]} 7.
Ngf3 {[%clk 0:04:46.7]} 7... Nbd7 {[%clk 0:04:53.7]} 8. Ne5 {[%clk 0:04:45.6]}
8... Re8 {[%clk 0:04:49.6]} 9. Qf3 {[%clk 0:04:42.9]} 9... Qb6 {[%clk
0:04:43.7]} 10. Rb1 {[%clk 0:04:37.4]} 10... c5 {[%clk 0:04:42.5]} 11. g4 {[%clk
0:04:35.7]} 11... cxd4 {[%clk 0:04:38.2]} 12. exd4 {[%clk 0:04:35.6]} 12... Nxe5
{[%clk 0:04:35]} 13. dxe5 {[%clk 0:04:33.9]} 13... Nd7 {[%clk 0:04:33.5]} 14. h4
{[%clk 0:04:19.8]} 14... d4 {[%clk 0:04:29.2]} 15. Nc4 {[%clk 0:03:57.6]} 15...
Qa6 {[%clk 0:04:21.7]} 16. Nd6 {[%clk 0:03:51.9]} 1-0

[Event "Live Chess"]
[Site "Chess.com"]
[Date "2024.06.02"]
[Round "-"]
[White "CheckThis4"]
[Black "jimwad"]
[Result "1-0"]
[WhiteElo "2694"]
[BlackElo "1317"]
[TimeControl "300"]
[EndTime "1:11:13 PDT"]
[Termination "CheckThis4 won by resignation"]

1. d4 {[%clk 0:04:58.2]} 1... d5 {[%clk 0:04:58.6]} 2. Nc3 {[%clk 0:04:57.7]}
2... Nf6 {[%clk 0:04:57.2]} 3. e4 {[%clk 0:04:56.3]} 3... dxe4 {[%clk
0:04:55.5]} 4. f3 {[%clk 0:04:55.1]} 4... exf3 {[%clk 0:04:52.9]} 5. Nxf3 {[%clk
0:04:53.7]} 5... Bg4 {[%clk 0:04:47.2]} 6. h3 {[%clk 0:04:51.2]} 6... Bxf3
{[%clk 0:04:46.3]} 7. Qxf3 {[%clk 0:04:49.7]} 7... c6 {[%clk 0:04:44.3]} 8. Be3
{[%clk 0:04:32.5]} 8... e6 {[%clk 0:04:42.2]} 9. O-O-O {[%clk 0:04:30.6]} 9...
Bb4 {[%clk 0:04:35.2]} 10. Bd3 {[%clk 0:04:20.3]} 10... Bxc3 {[%clk 0:04:31.7]}
11. bxc3 {[%clk 0:04:19.1]} 11... Qa5 {[%clk 0:04:26]} 12. Kd2 {[%clk
0:04:17.4]} 12... Nd5 {[%clk 0:04:16.5]} 13. Ke1 {[%clk 0:03:51.3]} 13... Qxc3+
{[%clk 0:04:14.5]} 14. Kf2 {[%clk 0:03:48.3]} 14... Nxe3 {[%clk 0:04:06.2]} 15.
Qxe3 {[%clk 0:03:46.3]} 15... O-O {[%clk 0:04:02.5]} 16. Bxh7+ {[%clk
0:03:43.6]} 16... Kh8 {[%clk 0:04:00.9]} 17. Qxc3 {[%clk 0:03:40.6]} 1-0

[Event "Live Chess"]
[Site "Chess.com"]
[Date "2024.06.02"]
[Round "-"]
[White "KyryloPoluliakh"]
[Black "NeilDruggan73"]
[Result "1-0"]
[WhiteElo "1544"]
[BlackElo "1718"]
[TimeControl "300"]
[EndTime "1:11:21 PDT"]
[Termination "KyryloPoluliakh won by resignation"]

1. c4 {[%clk 0:04:52.2]} 1... Nf6 {[%clk 0:04:57.2]} 2. Nc3 {[%clk 0:04:51.5]}
2... g6 {[%clk 0:04:57.1]} 3. g3 {[%clk 0:04:50]} 3... Bg7 {[%clk 0:04:57]} 4.
Bg2 {[%clk 0:04:49.1]} 4... Nc6 {[%clk 0:04:54.9]} 5. d4 {[%clk 0:04:48]} 5...
O-O {[%clk 0:04:54.8]} 6. e3 {[%clk 0:04:47.2]} 6... d6 {[%clk 0:04:53.9]} 7.
Nge2 {[%clk 0:04:46.6]} 7... Rb8 {[%clk 0:04:52]} 8. O-O {[%clk 0:04:45.7]} 8...
Nh5 {[%clk 0:04:51.1]} 9. a3 {[%clk 0:04:39.1]} 9... Bd7 {[%clk 0:04:49.6]} 10.
b4 {[%clk 0:04:37.8]} 10... a6 {[%clk 0:04:48]} 11. Bb2 {[%clk 0:04:37.1]} 11...
e5 {[%clk 0:04:45.9]} 12. Re1 {[%clk 0:04:22.7]} 12... f5 {[%clk 0:04:41.2]} 13.
Bd5+ {[%clk 0:04:18.2]} 13... Kh8 {[%clk 0:04:38.3]} 14. Bg2 {[%clk 0:04:15.2]}
14... f4 {[%clk 0:04:33.9]} 15. gxf4 {[%clk 0:04:04.7]} 15... exf4 {[%clk
0:04:32.6]} 16. exf4 {[%clk 0:04:02.3]} 16... Nxf4 {[%clk 0:04:23.6]} 17. Nxf4
{[%clk 0:03:59.5]} 17... Rxf4 {[%clk 0:04:22.4]} 18. Ne2 {[%clk 0:03:58.6]}
18... Rg4 {[%clk 0:04:13.3]} 19. Rb1 {[%clk 0:03:53.4]} 19... Qg5 {[%clk
0:04:11.6]} 20. Ng3 {[%clk 0:03:43.5]} 20... Rf8 {[%clk 0:04:08.7]} 21. Bxc6
{[%clk 0:03:35.9]} 21... bxc6 {[%clk 0:04:04.8]} 22. Qe2 {[%clk 0:03:26.9]}
22... h5 {[%clk 0:04:01.5]} 23. Kh1 {[%clk 0:03:18.1]} 23... h4 {[%clk
0:03:59.8]} 24. Ne4 {[%clk 0:03:10.9]} 24... Re8 {[%clk 0:03:58.1]} 25. Nxg5
{[%clk 0:03:07.1]} 25... Rxe2 {[%clk 0:03:56.9]} 26. Rxe2 {[%clk 0:03:04.4]}
26... Rxg5 {[%clk 0:03:55.9]} 27. d5 {[%clk 0:03:01]} 27... Bxb2 {[%clk
0:03:49.5]} 28. Rbxb2 {[%clk 0:02:57.8]} 28... Bg4 {[%clk 0:03:48.8]} 29. Re3
{[%clk 0:02:43.8]} 29... h3 {[%clk 0:03:36.6]} 30. Rg3 {[%clk 0:02:30.8]} 30...
Re5 {[%clk 0:03:32.2]} 31. Rxg4 {[%clk 0:02:26.3]} 31... Re1+ {[%clk 0:03:30.4]}
32. Rg1 {[%clk 0:02:25.6]} 32... Re3 {[%clk 0:03:29.6]} 33. fxe3 {[%clk
0:02:23.3]} 1-0